bitfinex-derivatives/quotes_BTCF0:USTF0_20250810
["timestamp","ask_amount","ask_price","bid_price","bid_amount"]
[1754830453277,0.2001579,118560.0,118550.0,0.57781]
[1754830453472,0.5610579,118560.0,118550.0,0.57781]
[1754830454069,0.5610579,118560.0,118550.0,0.6586]
[1754830454966,0.5610579,118560.0,118550.0,0.6626]
[1754830455869,0.5610579,118560.0,118550.0,0.004]
[1754830456064,0.5610579,118560.0,118550.0,0.54372]
[1754830456567,0.5610579,118560.0,118550.0,0.54972]
[1754830457166,0.5610579,118560.0,118550.0,0.01]
[1754830460074,0.5610579,118560.0,118550.0,0.06154]
[1754830460271,0.4940079,118560.0,118550.0,0.1355451]
[1754830460469,0.1874879,118560.0,118550.0,0.2073051]
[1754830460670,0.0011,118560.0,118550.0,0.2073051]
[1754830460872,0.0854379,118560.0,118550.0,0.2073051]
[1754830461671,0.2012579,118560.0,118550.0,0.2073051]
[1754830462371,0.2012579,118560.0,118550.0,0.2033051]
[1754830462572,0.2032579,118560.0,118550.0,0.11896]
[1754830462773,0.3688667,118550.0,118540.0,0.203312]
[1754830463073,0.7297667,118550.0,118540.0,0.743192]
[1754830463266,0.2531467,118550.0,118540.0,0.743192]
[1754830463978,0.2531467,118550.0,118540.0,1.103992]
[1754830463979,0.0844449,118550.0,118540.0,1.103992]
[1754830464178,0.0001,118550.0,118540.0,1.105992]
[1754830464572,0.0001,118550.0,118540.0,1.110992]
[1754830464777,0.0001,118550.0,118540.0,1.279704]
[1754830464972,0.0843393,118560.0,118550.0,0.1692149]
[1754830465169,0.0843393,118560.0,118550.0,0.2033049]
[1754830465373,0.0843393,118560.0,118550.0,0.5641049]
[1754830466076,0.6981406,118570.0,118560.0,0.05754]
[1754830466277,0.6982406,118570.0,118560.0,0.7433378]
[1754830467477,0.6982406,118570.0,118560.0,0.7443378]
[1754830467883,0.5305652,118570.0,118560.0,0.7443378]
[1754830468183,0.0854308,118570.0,118560.0,1.1051378]
[1754830468885,0.0011,118570.0,118560.0,1.1051378]
[1754830469980,0.6137637,118590.0,118580.0,0.0843236]
[1754830470288,0.6137637,118590.0,118580.0,0.7436436]
[1754830471085,0.6147637,118590.0,118580.0,0.7436436]
[1754830471286,0.6691437,118590.0,118580.0,0.7437436]
[1754830471480,0.7092237,118590.0,118580.0,0.7437436]
[1754830471686,0.7306837,118590.0,118580.0,0.7437436]
[1754830472187,0.7189137,118590.0,118580.0,0.75219791]
[1754830472576,0.0031,118590.0,118580.0,0.75219791]
[1754830472783,0.0874164,118590.0,118580.0,0.75219791]
[1754830472980,0.0874164,118590.0,118580.0,0.82766564]
[1754830473983,0.1037864,118590.0,118580.0,0.82766564]
[1754830474186,0.1580664,118590.0,118580.0,0.82766564]
[1754830474385,0.1580664,118590.0,118580.0,0.89422003]
[1754830474786,0.1718364,118590.0,118580.0,0.89422003]
[1754830475392,0.1580664,118590.0,118580.0,0.89422003]
[1754830475582,0.1580664,118590.0,118580.0,0.8187523]
[1754830475888,0.1580664,118590.0,118580.0,0.9241855]
[1754830476489,0.1352964,118590.0,118580.0,0.9241855]
[1754830478988,0.0874164,118590.0,118580.0,0.9241855]
[1754830481491,0.1923064,118590.0,118580.0,0.9241855]
[1754830481692,0.2058364,118590.0,118580.0,0.9241855]
[1754830481989,0.2058364,118590.0,118580.0,1.1931855]
[1754830482592,0.1689464,118590.0,118580.0,1.1931855]
[1754830482790,0.1689464,118590.0,118580.0,1.0877523]
[1754830483586,0.1923064,118590.0,118580.0,1.0877523]
[1754830483789,0.5666364,118590.0,118580.0,0.4700736]
[1754830483989,0.5666364,118590.0,118580.0,0.92515]
[1754830484486,0.5666364,118590.0,118580.0,1.00072945]
[1754830486592,0.5666364,118590.0,118580.0,0.34467945]
[1754830486802,0.5666364,118590.0,118580.0,0.40990945]
[1754830487090,0.5666364,118590.0,118580.0,0.46133945]
[1754830487998,0.5666364,118590.0,118580.0,0.19233945]
[1754830488696,0.5666364,118590.0,118580.0,0.17881945]
[1754830488892,0.7352924,118590.0,118580.0,0.07567945]
[1754830489590,0.5666364,118590.0,118580.0,0.07567945]
[1754830489896,0.5666364,118590.0,118580.0,0.09927945]
[1754830490298,0.5666364,118590.0,118580.0,0.13160945]
[1754830490497,0.5666364,118590.0,118580.0,0.05603]
[1754830490998,0.5666364,118590.0,118580.0,0.0001]
[1754830491993,0.7352924,118590.0,118580.0,0.0001]
[1754830492193,0.1330577,118560.0,118550.0,0.32216986]
[1754830492386,0.2027577,118560.0,118550.0,0.82510666]
[1754830492591,0.5635577,118560.0,118550.0,0.80601193]
[1754830493404,0.5635577,118560.0,118550.0,0.81501193]
[1754830493597,0.5636577,118560.0,118550.0,0.81511193]
[1754830495088,0.5636577,118560.0,118550.0,0.15953193]
[1754830495491,0.5636577,118560.0,118550.0,0.042]
[1754830495698,0.5636577,118560.0,118550.0,0.11519385]
[1754830496197,0.5636577,118560.0,118550.0,0.0091]
[1754830496604,0.5636577,118560.0,118550.0,0.12576]
[1754830497005,0.5636577,118560.0,118550.0,0.27619193]
[1754830498098,0.5636577,118560.0,118550.0,0.20674193]
[1754830498298,0.5636577,118560.0,118550.0,0.08490908]
[1754830499501,0.5636577,118560.0,118550.0,0.0091]
[1754830500294,0.5636577,118560.0,118550.0,0.07991]
[1754830500495,0.5636577,118560.0,118550.0,0.12576]
[1754830500691,0.5636577,118560.0,118550.0,0.2101049]
[1754830500912,0.5636577,118560.0,118550.0,0.12576]
[1754830501695,0.5636577,118560.0,118550.0,0.2101048]
[1754830502299,0.4939577,118560.0,118550.0,0.2101048]
[1754830502499,0.5636577,118560.0,118550.0,0.2101048]
[1754830505508,0.4939577,118560.0,118550.0,0.2101048]
[1754830505912,0.1010877,118560.0,118550.0,0.2101048]
[1754830506110,0.1010877,118560.0,118550.0,0.64671388]
[1754830506111,0.0844377,118560.0,118550.0,0.64671388]
[1754830506316,0.0844377,118560.0,118550.0,0.28591388]
[1754830507005,0.0844377,118560.0,118550.0,0.64671388]
[1754830507813,0.0844377,118560.0,118550.0,0.28591388]
[1754830508015,0.0844377,118560.0,118550.0,0.64671388]
[1754830509409,0.0001,118560.0,118550.0,0.64671388]
[1754830509710,0.0001,118560.0,118550.0,0.64651208]
[1754830509911,0.0001,118560.0,118550.0,0.7396008]
[1754830510315,0.0001,118560.0,118550.0,1.0086008]
[1754830510613,0.0001,118560.0,118550.0,0.8399048]
[1754830510812,0.0001,118560.0,118550.0,0.91552085]
[1754830513010,0.0001,118560.0,118550.0,0.8399048]
[1754830513416,0.5294546,118580.0,118570.0,0.2041406]
[1754830513610,0.5294546,118580.0,118570.0,0.81966766]
[1754830514514,0.5294546,118580.0,118570.0,0.82066766]
[1754830514715,0.5295546,118580.0,118570.0,0.82076766]
[1754830515617,0.2025246,118580.0,118570.0,0.82076766]
[1754830515811,0.0166,118580.0,118570.0,0.82076766]
[1754830516016,0.0001,118580.0,118570.0,1.1059206]
[1754830516425,0.0001,118580.0,118570.0,1.21505331]
[1754830520510,0.0001,118580.0,118570.0,1.48405331]
[1754830521919,0.0001,118580.0,118570.0,1.3779206]
[1754830525414,0.3608,118590.0,118580.0,0.07156]
[1754830525619,0.3608,118590.0,118580.0,0.2041335]
[1754830525922,0.7332512,118600.0,118590.0,0.2041264]
[1754830526118,0.7332512,118600.0,118590.0,0.81933513]
[1754830527229,0.7332512,118600.0,118590.0,0.82768483]
[1754830527522,0.7383512,118600.0,118590.0,0.82778483]
[1754830527722,0.7433512,118600.0,118590.0,0.82778483]
[1754830527914,0.03619,118600.0,118590.0,0.82778483]
[1754830528117,0.1204993,118600.0,118590.0,0.82778483]
[1754830528312,0.1729993,118600.0,118590.0,0.82778483]
[1754830528519,0.2089193,118600.0,118590.0,0.83078483]
[1754830529325,0.2039193,118600.0,118590.0,0.83078483]
[1754830529525,0.2039193,118600.0,118590.0,0.83178483]
[1754830533725,0.5647193,118600.0,118590.0,0.07970873]
[1754830534124,0.5647193,118600.0,118590.0,0.0041]
[1754830535333,0.5647193,118600.0,118590.0,0.07970873]
[1754830535533,0.5667193,118600.0,118590.0,0.07870873]
[1754830535935,0.5667193,118600.0,118590.0,0.0031]
[1754830536232,0.5667193,118600.0,118590.0,0.07870873]
[1754830536436,0.5697193,118600.0,118590.0,0.07870873]
[1754830537435,0.5697193,118600.0,118590.0,0.0031]
[1754830538332,0.5697193,118600.0,118590.0,0.07870873]
[1754830538948,0.5697193,118600.0,118590.0,0.07570873]
[1754830539139,0.5707193,118600.0,118590.0,0.07570873]
[1754830541448,0.5747193,118600.0,118590.0,0.07570873]
[1754830547150,0.5747193,118600.0,118590.0,0.0001]
[1754830550753,1.1133593,118600.0,118590.0,0.0001]
[1754830553456,1.1133593,118600.0,118570.0,0.61464873]
[1754830553665,0.5640435,118580.0,118570.0,0.53904]
[1754830553959,0.1326606,118570.0,118560.0,0.14748636]
[1754830554165,0.5640506,118570.0,118560.0,0.73558873]
[1754830555462,0.5640506,118570.0,118560.0,0.82492643]
[1754830555663,0.5641506,118570.0,118560.0,0.82502643]
[1754830555864,0.5641506,118570.0,118560.0,0.74068873]
[1754830556666,0.5641506,118570.0,118560.0,0.74268873]
[1754830557964,0.5641506,118570.0,118560.0,0.67002873]
[1754830558264,0.5641506,118570.0,118560.0,0.66708]
[1754830559063,0.5641506,118570.0,118560.0,0.60918]
[1754830559261,0.5641506,118570.0,118560.0,0.74268873]
[1754830560862,0.5641506,118570.0,118560.0,0.20412873]
[1754830563171,0.4935606,118570.0,118560.0,0.28846643]
[1754830563469,0.5641506,118570.0,118560.0,0.28846643]
[1754830563681,0.4935606,118570.0,118560.0,0.2128577]
[1754830564677,0.4935606,118570.0,118560.0,0.28865246]
[1754830565473,0.4452306,118570.0,118560.0,0.28865246]
[1754830568574,0.0844306,118570.0,118560.0,0.28865246]
[1754830572180,0.1326206,118570.0,118560.0,0.28865246]
[1754830572480,0.5642606,118570.0,118560.0,0.2128577]
[1754830580782,0.5642606,118570.0,118560.0,0.28865246]
[1754830582072,0.5642606,118570.0,118560.0,0.2128577]
[1754830582274,0.5642606,118570.0,118560.0,0.31871729]
[1754830585784,0.5495606,118570.0,118560.0,0.31871729]
[1754830585983,0.0001,118570.0,118560.0,0.31871729]
[1754830588889,0.0844306,118570.0,118560.0,0.31871729]
[1754830589392,0.0001,118570.0,118560.0,0.31871729]
[1754830589687,0.0001,118570.0,118560.0,0.2128577]
[1754830589988,0.0001,118570.0,118560.0,0.5736577]
[1754830591392,0.0001,118570.0,118560.0,0.8426577]
[1754830592388,0.0001,118570.0,118560.0,0.4818577]
[1754830593583,0.0844306,118570.0,118560.0,0.58809085]
[1754830593785,0.03238,118570.0,118560.0,0.58809085]
[1754830596096,0.1167106,118570.0,118560.0,0.58809085]
[1754830596395,0.03238,118570.0,118560.0,0.58809085]
[1754830598096,0.0001,118570.0,118560.0,0.58809085]
[1754830599602,0.0001,118570.0,118560.0,0.94889085]
[1754830602402,0.0001,118570.0,118560.0,0.8426577]
[1754830607006,0.8168323,118590.0,118580.0,0.1324435]
[1754830607207,0.8168323,118590.0,118580.0,0.7448335]
[1754830607609,0.8168323,118590.0,118580.0,0.82069429]
[1754830608308,0.8168323,118590.0,118580.0,0.7448335]
[1754830608508,0.8189323,118590.0,118580.0,0.7449335]
[1754830609311,0.8199323,118590.0,118580.0,0.7449335]
[1754830616317,0.8199323,118590.0,118580.0,0.85113734]
[1754830616921,0.8199323,118590.0,118580.0,0.7449335]
[1754830625924,0.8199323,118590.0,118580.0,0.82085881]
[1754830632238,0.8199323,118590.0,118580.0,0.85113734]
[1754830632631,0.8199323,118590.0,118580.0,0.7423935]
[1754830638439,0.8199323,118590.0,118580.0,0.81833679]
[1754830643742,0.8199323,118590.0,118580.0,0.7423935]
[1754830645032,0.8199323,118590.0,118580.0,0.81833679]
[1754830649632,0.8199323,118590.0,118580.0,0.7423935]
[1754830654049,0.7487923,118590.0,118580.0,0.7423935]
[1754830654249,0.8180623,118590.0,118580.0,0.7423935]
[1754830657558,0.8180623,118590.0,118580.0,0.84859734]
[1754830665551,0.8180623,118590.0,118580.0,0.92450523]
[1754830665854,0.8180623,118590.0,118580.0,0.81830139]
[1754830667156,0.8180623,118590.0,118580.0,0.7423935]
[1754830667658,0.8180623,118590.0,118580.0,0.81830101]
[1754830669959,0.7337393,118590.0,118580.0,0.81830101]
[1754830675259,0.3729393,118590.0,118580.0,0.81830101]
[1754830675758,0.0031,118590.0,118580.0,0.84859734]
[1754830675959,0.0874164,118590.0,118580.0,0.84859734]
[1754830676259,0.0031,118590.0,118580.0,0.84859734]
[1754830676655,0.0011,118590.0,118580.0,0.84859734]
[1754830676956,0.2736487,118610.0,118600.0,0.11985]
[1754830677156,0.2736487,118610.0,118600.0,0.7424793]
[1754830677157,0.2877887,118610.0,118600.0,0.7424793]
[1754830678455,0.4563771,118620.0,118610.0,0.1714522]
[1754830678760,0.8172771,118620.0,118610.0,0.28815091]
[1754830679354,0.8172771,118620.0,118610.0,0.21244422]
[1754830679355,0.4564771,118620.0,118610.0,0.21244422]
[1754830679750,0.8172771,118620.0,118610.0,0.21244422]
[1754830679955,0.8222771,118620.0,118610.0,0.21244422]
[1754830680151,0.8262771,118620.0,118610.0,0.21244422]
[1754830682660,0.8262771,118620.0,118610.0,0.27878611]
[1754830700171,0.8262771,118620.0,118610.0,0.3544928]
[1754830706878,0.8121371,118620.0,118610.0,0.3544928]
[1754830707078,0.8266571,118620.0,118610.0,0.3544928]
[1754830707776,0.7423549,118620.0,118610.0,0.3544928]
[1754830707974,0.7423549,118620.0,118610.0,0.27878611]
[1754830709683,0.7423549,118620.0,118610.0,0.3545968]
[1754830711980,0.7423549,118620.0,118610.0,0.27878611]
[1754830717389,0.7423549,118620.0,118610.0,0.38498995]
[1754830720181,0.7423549,118620.0,118610.0,0.27878611]
[1754830722284,0.7423549,118620.0,118610.0,0.35459429]
[1754830728894,0.7423549,118620.0,118610.0,0.27878611]
[1754830731406,0.7423549,118620.0,118610.0,0.354622]
[1754830732603,0.7423549,118620.0,118610.0,0.37377244]
[1754830742118,0.7423549,118620.0,118610.0,0.17808655]
[1754830742619,0.7423549,118620.0,118610.0,0.22769655]
[1754830742821,0.7423549,118620.0,118610.0,0.29693655]
[1754830744120,0.7423549,118620.0,118610.0,0.40314039]
[1754830745427,0.7423549,118620.0,118610.0,0.28429039]
[1754830746128,0.7423549,118620.0,118610.0,0.36013912]
[1754830746425,0.7423549,118620.0,118610.0,0.25393528]
[1754830747227,0.7423549,118620.0,118610.0,0.07584873]
[1754830747520,1.3645371,118620.0,118600.0,0.0001]
[1754830747724,0.5628423,118610.0,118600.0,0.0001]
[1754830748227,0.5628423,118610.0,118600.0,0.09269849]
[1754830748528,0.5628423,118610.0,118600.0,0.16854722]
[1754830749031,0.5628423,118610.0,118600.0,0.09269849]
[1754830749527,0.5638423,118610.0,118600.0,0.09269849]
[1754830750221,0.5648423,118610.0,118600.0,0.09269849]
[1754830750426,0.5648423,118610.0,118600.0,0.19718849]
[1754830750629,0.5648423,118610.0,118600.0,0.21171849]
[1754830752732,0.5648423,118610.0,118600.0,0.31792233]
[1754830753528,0.5648423,118610.0,118600.0,0.21171849]
[1754830753929,0.5648423,118610.0,118600.0,0.31792233]
[1754830755933,0.5648423,118610.0,118600.0,0.21171849]
[1754830758334,0.5648423,118610.0,118600.0,0.31792233]
[1754830759933,0.5648423,118610.0,118600.0,0.21171849]
[1754830761940,0.5648423,118610.0,118600.0,0.28751037]
[1754830772245,0.5648423,118610.0,118600.0,0.21171849]
[1754830773843,0.5648423,118610.0,118600.0,0.28753354]
[1754830776742,0.4937123,118610.0,118600.0,0.28753354]
[1754830776942,0.5623623,118610.0,118600.0,0.28753354]
[1754830780753,0.5623623,118610.0,118600.0,0.55653354]
[1754830783849,0.5623623,118610.0,118600.0,0.48071849]
[1754830792564,0.5623623,118610.0,118600.0,0.36169849]
[1754830792764,0.5623623,118610.0,118600.0,0.2691]
[1754830793072,0.5623623,118610.0,118600.0,0.49197384]
[1754830793366,0.5623623,118610.0,118600.0,0.38577]
[1754830793673,0.9231623,118610.0,118600.0,0.38577]
[1754830793882,0.9231623,118610.0,118600.0,0.2691]
[1754830794072,0.9231623,118610.0,118600.0,0.34498397]
[1754830794768,0.9231623,118610.0,118600.0,0.2691]
[1754830795885,0.9221623,118610.0,118600.0,0.2691]
[1754830796069,0.9251623,118610.0,118600.0,0.2691]
[1754830796380,0.9301623,118610.0,118600.0,0.2691]
[1754830798579,0.9301623,118610.0,118600.0,0.0001]
[1754830803480,0.1785594,118600.0,118590.0,0.27676085]
[1754830803687,0.5619094,118600.0,118590.0,0.27676085]
[1754830804579,0.5619094,118600.0,118590.0,0.19244625]
[1754830804781,0.5620094,118600.0,118590.0,0.27686275]
[1754830805487,0.5620094,118600.0,118590.0,0.28086275]
[1754830807492,0.5620094,118600.0,118590.0,0.19654625]
[1754830808895,0.5620094,118600.0,118590.0,0.28303275]
[1754830811994,0.5620094,118600.0,118590.0,0.19871625]
[1754830812998,0.5620094,118600.0,118590.0,0.28303275]
[1754830819699,0.5620094,118600.0,118590.0,0.31346034]
[1754830822599,0.5620094,118600.0,118590.0,0.2072565]
[1754830823598,0.5620094,118600.0,118590.0,0.28309108]
[1754830828203,0.5620094,118600.0,118590.0,0.2072565]
[1754830830302,0.5620094,118600.0,118590.0,0.12294]
[1754830831310,0.5620094,118600.0,118590.0,0.2072565]
[1754830832108,0.5620094,118600.0,118590.0,0.22914384]
[1754830833704,0.5620094,118600.0,118590.0,0.31346034]
[1754830834105,0.5620094,118600.0,118590.0,0.22914384]
[1754830836409,0.5620094,118600.0,118590.0,0.12294]
[1754830841909,0.5620094,118600.0,118590.0,0.22914384]
[1754830844112,0.5620094,118600.0,118590.0,0.31346034]
[1754830844312,0.5620094,118600.0,118590.0,0.22914384]
[1754830845108,0.5620094,118600.0,118590.0,0.11030384]
[1754830845306,0.5620094,118600.0,118590.0,0.18619157]
[1754830845507,1.0993894,118600.0,118590.0,0.16119157]
[1754830845814,1.0993894,118600.0,118590.0,0.07588773]
[1754830846311,1.1003894,118600.0,118590.0,0.07588773]
[1754830846711,1.1023894,118600.0,118590.0,0.07588773]
[1754830846913,1.1024894,118600.0,118590.0,0.07598773]
[1754830847815,0.5650094,118600.0,118590.0,0.07598773]
[1754830848219,0.5650094,118600.0,118590.0,0.0001]
[1754830848419,0.5650094,118600.0,118590.0,0.07598773]
[1754830848618,0.5650094,118600.0,118590.0,0.0001]
[1754830849116,0.5650094,118600.0,118590.0,0.07598773]
[1754830849416,0.5670094,118600.0,118590.0,0.07598773]
[1754830855425,0.5670094,118600.0,118590.0,0.0001]
[1754830856716,0.7356494,118600.0,118580.0,0.07588773]
[1754830856928,1.0534164,118590.0,118580.0,0.07588773]
[1754830858229,1.0534164,118590.0,118580.0,0.09929773]
[1754830858431,1.0535164,118590.0,118580.0,0.09939773]
[1754830859431,1.0535164,118590.0,118580.0,0.07598773]
[1754830861525,1.0535164,118590.0,118580.0,0.0001]
[1754830868244,1.0535164,118590.0,118580.0,0.02265]
[1754830869247,1.0535164,118590.0,118580.0,0.0001]
[1754830869947,0.1669536,118580.0,118570.0,0.07588773]
[1754830870143,0.5952051,118580.0,118570.0,0.09843773]
[1754830870549,0.5952051,118580.0,118570.0,0.02255]
[1754830870850,0.5277536,118580.0,118570.0,0.02255]
[1754830871047,0.5278536,118580.0,118570.0,0.02265]
[1754830871248,0.5278536,118580.0,118570.0,0.02565]
[1754830871642,0.5278536,118580.0,118570.0,0.02965]
[1754830872752,0.5278536,118580.0,118560.0,0.14264089]
[1754830872753,0.0843307,118570.0,118560.0,0.09490089]
[1754830873051,1.0651607,118570.0,118560.0,0.11745089]
[1754830873948,1.0651607,118570.0,118560.0,0.12145089]
[1754830874146,1.0662607,118570.0,118560.0,0.12655089]
[1754830875150,1.074693,118570.0,118560.0,0.12655089]
[1754830877653,1.074693,118570.0,118560.0,0.05066316]
[1754830880255,1.074693,118570.0,118560.0,0.02811316]
[1754830880460,1.074693,118570.0,118560.0,0.05066316]
[1754830881459,1.074693,118570.0,118560.0,0.12655089]
[1754830882762,1.074693,118570.0,118560.0,0.14157089]
[1754830883860,1.074693,118570.0,118560.0,0.05066316]
[1754830888759,1.074593,118570.0,118560.0,6e-08]
[1754830889065,0.1172949,118550.0,118540.0,0.09843773]
[1754830889263,1.4259749,118550.0,118540.0,0.09843773]
[1754830889653,1.4259749,118550.0,118540.0,0.11345773]
[1754830889862,1.4260749,118550.0,118540.0,0.19230773]
[1754830890463,1.4260749,118550.0,118540.0,0.19730773]
[1754830890964,1.4270749,118550.0,118540.0,0.20330773]
[1754830891868,1.4270349,118550.0,118540.0,0.20330773]
[1754830896064,1.4270349,118550.0,118540.0,0.18979773]
[1754830896265,1.4270349,118550.0,118540.0,0.20378773]
[1754830896470,1.4270349,118550.0,118540.0,0.1279]
[1754830898768,0.8896749,118550.0,118540.0,0.1279]
[1754830900674,0.8896749,118550.0,118540.0,0.20378773]
[1754830906283,0.8896749,118550.0,118540.0,0.20147773]
[1754830906485,0.8888949,118550.0,118540.0,0.2205494]
[1754830906685,0.8888949,118550.0,118540.0,0.3049014]
[1754830906880,0.8749149,118550.0,118540.0,0.22901367]
[1754830907583,0.8888949,118550.0,118540.0,0.22901367]
[1754830909085,0.8888949,118550.0,118540.0,0.3049014]
[1754830909583,0.8888949,118550.0,118540.0,0.22901367]
[1754830909983,0.8888949,118550.0,118540.0,0.33516432]
[1754830910285,0.8888949,118550.0,118540.0,0.22901367]
[1754830910776,0.8888949,118550.0,118540.0,0.33516432]
[1754830911088,0.8888949,118550.0,118540.0,0.30487317]
[1754830912081,0.8888949,118550.0,118540.0,0.22901367]
[1754830913604,0.8888949,118550.0,118540.0,0.33516432]
[1754830913892,0.0854449,118550.0,118540.0,0.77185097]
[1754830914187,0.0854449,118550.0,118540.0,0.86467632]
[1754830914979,0.0854449,118550.0,118540.0,1.13367632]
[1754830915589,0.0011,118550.0,118540.0,1.43367632]
[1754830915987,0.0011,118550.0,118540.0,1.32752567]
[1754830916184,0.6919524,118570.0,118560.0,0.1332278]
[1754830916490,0.6447924,118570.0,118560.0,0.81483387]
[1754830916684,0.6779724,118570.0,118560.0,0.81483387]
[1754830916889,0.6919524,118570.0,118560.0,0.81483387]
[1754830917190,0.5294659,118570.0,118560.0,0.81483387]
[1754830917385,0.5295659,118570.0,118560.0,0.83363174]
[1754830917591,0.4452311,118570.0,118560.0,0.75778567]
[1754830917793,0.0844311,118570.0,118560.0,0.75778567]
[1754830918193,0.0001,118570.0,118560.0,1.28726567]
[1754830918789,0.0001,118570.0,118560.0,1.39345017]
[1754830918987,0.0011,118570.0,118560.0,1.39545017]
[1754830919188,0.0011,118570.0,118560.0,1.28926567]
[1754830919492,0.0011,118570.0,118560.0,1.39526026]
[1754830919694,0.0011,118570.0,118560.0,1.66426026]
[1754830920596,0.0011,118570.0,118560.0,1.66626026]
[1754830922599,0.0011,118570.0,118560.0,1.49758026]
[1754830922899,0.0854307,118570.0,118560.0,1.49758026]
[1754830931397,0.0854307,118570.0,118560.0,1.39158567]
[1754830932306,0.0854307,118570.0,118560.0,1.49740542]
[1754830932694,0.0854307,118570.0,118560.0,1.39158567]
[1754830937399,0.0854307,118570.0,118560.0,1.03078567]
[1754830937607,0.0854307,118570.0,118560.0,1.49740542]
[1754830940415,0.0854307,118570.0,118560.0,1.49756901]
[1754830941616,0.0854307,118570.0,118560.0,1.39158567]
[1754830945826,0.4451173,118590.0,118580.0,0.2005436]
[1754830946119,0.4451173,118590.0,118580.0,1.0064636]
[1754830946616,0.4451173,118590.0,118580.0,1.11269619]
[1754830947012,0.3628,118590.0,118580.0,1.11269619]
[1754830947212,0.4472165,118590.0,118580.0,1.11279619]
[1754830947917,0.0021,118590.0,118580.0,1.11279619]
[1754830948110,0.0021,118590.0,118580.0,1.12126274]
[1754830948319,0.0041,118590.0,118580.0,1.12226274]
[1754830948516,0.0884165,118590.0,118580.0,1.03609809]
[1754830948716,0.0041,118590.0,118580.0,1.03609809]
[1754830949113,0.0041,118590.0,118580.0,1.10346864]
[1754830949620,0.0041,118590.0,118580.0,1.03609809]
[1754830949922,0.0844165,118590.0,118580.0,1.03409809]
[1754830950118,0.0854165,118590.0,118580.0,1.03909809]
[1754830950417,0.0854165,118590.0,118580.0,1.14527146]
[1754830950418,0.1071865,118590.0,118580.0,1.14527146]
[1754830950626,0.1641065,118590.0,118580.0,1.14527146]
[1754830951818,0.1503765,118590.0,118580.0,1.14527146]
[1754830953420,0.1503765,118590.0,118580.0,1.03909809]
[1754830954213,0.1503765,118590.0,118580.0,1.10751414]
[1754830955125,0.5284265,118590.0,118580.0,1.10743414]
[1754830955326,0.5284265,118590.0,118580.0,1.13713513]
[1754830955716,0.5306265,118590.0,118580.0,1.18423513]
[1754830955917,0.5284265,118590.0,118580.0,1.17576858]
[1754830956529,0.5284265,118590.0,118580.0,1.18406308]
[1754830956728,0.1676265,118590.0,118580.0,1.18406308]
[1754830957721,0.1676265,118590.0,118580.0,1.17576858]
[1754830958226,0.1676265,118590.0,118580.0,1.08124858]
[1754830958529,0.1698265,118590.0,118580.0,1.12834858]
[1754830958730,0.1676265,118590.0,118580.0,1.12834858]
[1754830959629,0.1676265,118590.0,118580.0,1.12734858]
[1754830959829,0.1676265,118590.0,118580.0,1.05054759]
[1754830961025,0.1676265,118590.0,118580.0,1.15672096]
[1754830961232,0.1676265,118590.0,118580.0,0.93584096]
[1754830963132,0.5284265,118590.0,118580.0,0.93584096]
[1754830969034,0.5284265,118590.0,118580.0,0.82966759]
[1754830973938,0.5284265,118590.0,118580.0,0.90547951]
[1754830977039,0.1641065,118590.0,118580.0,0.90547951]
[1754830977240,0.1503765,118590.0,118580.0,0.90547951]
[1754830977439,0.1503765,118590.0,118580.0,0.93584096]
[1754830977842,0.1503765,118590.0,118580.0,0.82966759]
[1754830978143,0.0854165,118590.0,118580.0,0.82966759]
[1754830978336,0.0854165,118590.0,118580.0,0.93584096]
[1754830978741,0.001,118590.0,118580.0,0.93574096]
[1754830979044,0.001,118590.0,118580.0,1.09856759]
[1754830979546,0.001,118590.0,118580.0,1.24973867]
[1754830980050,0.0853165,118590.0,118580.0,1.24973867]
[1754830980350,0.0854165,118590.0,118580.0,1.24983867]
[1754830982744,0.0001,118590.0,118580.0,1.24983867]
[1754830983339,0.0844165,118590.0,118580.0,1.24983867]
[1754830984048,0.0001,118590.0,118580.0,1.24983867]
[1754830988545,0.3608,118610.0,118600.0,0.2043097]
[1754830988745,0.7396535,118620.0,118610.0,0.2043026]
[1754830988951,0.7754935,118620.0,118610.0,0.2043026]
[1754830989144,0.7915935,118620.0,118610.0,0.2043026]
[1754830989949,0.7915935,118620.0,118610.0,0.31047059]
[1754830990151,0.7916935,118620.0,118610.0,0.31057059]
[1754830991046,0.7916935,118620.0,118610.0,0.2044026]
[1754830991647,0.8205335,118620.0,118610.0,0.2054026]
[1754830992049,0.8295335,118620.0,118610.0,0.2064026]
[1754830993959,0.8295335,118620.0,118610.0,0.28216741]
[1754830995258,0.8066935,118620.0,118610.0,0.28216741]
[1754830996560,0.7223913,118620.0,118610.0,0.28216741]
[1754830996859,0.7452313,118620.0,118610.0,0.28216741]
[1754830999562,0.7452313,118620.0,118610.0,0.55116741]
[1754830999865,0.3844313,118620.0,118610.0,0.55116741]
[1754831000160,0.2772891,118620.0,118610.0,0.55116741]
[1754831001062,0.2772891,118620.0,118610.0,0.4754026]
[1754831001664,0.1836991,118620.0,118610.0,0.4754026]
[1754831001866,0.2772891,118620.0,118610.0,0.4754026]
[1754831002056,0.2772891,118620.0,118610.0,0.58157059]
[1754831002565,0.2762891,118620.0,118610.0,0.58157059]
[1754831004066,0.2139591,118620.0,118610.0,0.4754026]
[1754831004256,0.1622177,118620.0,118610.0,0.55112519]
[1754831004562,0.1622177,118620.0,118610.0,0.4754026]
[1754831005063,0.1296577,118620.0,118610.0,0.4754026]
[1754831005458,0.1622177,118620.0,118610.0,0.4754026]
[1754831006258,0.1622177,118620.0,118610.0,0.55113127]
[1754831006459,0.1622177,118620.0,118610.0,0.4754026]
[1754831006660,0.1758877,118620.0,118610.0,0.55112915]
[1754831006860,0.1296577,118620.0,118610.0,0.4754026]
[1754831007062,0.1296577,118620.0,118610.0,0.5511264]
[1754831007368,0.1622177,118620.0,118610.0,0.5511264]
[1754831008466,0.1758877,118620.0,118610.0,0.5511264]
[1754831009367,0.1758877,118620.0,118610.0,0.4754026]
[1754831009558,0.1919877,118620.0,118610.0,0.4754026]
[1754831010665,0.1919877,118620.0,118610.0,0.58157059]
[1754831014061,0.1919877,118620.0,118610.0,0.4754026]
[1754831014767,0.1919877,118620.0,118610.0,0.58146649]
[1754831018272,0.1919877,118620.0,118610.0,0.4754026]
[1754831019776,0.5774977,118620.0,118610.0,0.45308416]
[1754831019972,0.5774977,118620.0,118610.0,0.91401628]
[1754831020273,0.5774977,118620.0,118610.0,0.37725628]
[1754831020474,0.5774977,118620.0,118610.0,0.10825628]
[1754831020875,0.5773977,118620.0,118610.0,0.07583898]
[1754831021173,0.1084227,118610.0,118600.0,0.08095628]
[1754831021376,0.0940098,118600.0,118590.0,0.17479108]
[1754831021566,0.4692298,118600.0,118590.0,0.02362]
[1754831022271,0.1084369,118590.0,118580.0,0.80203449]
[1754831022476,0.4692369,118590.0,118580.0,0.64800399]
[1754831023574,0.4692369,118590.0,118580.0,0.64900399]
[1754831023877,0.4692369,118590.0,118580.0,0.58058794]
[1754831024276,0.4732369,118590.0,118580.0,0.58058794]